bitfinex-derivatives/quotes_SOLF0:USTF0_20251109
["timestamp","ask_amount","ask_price","bid_price","bid_amount"]
[1762650239087,4.81741222,157.09,157.08,7.3018]
[1762650240186,0.04881267,157.1,157.08,5.7318]
[1762650240386,0.04881267,157.1,157.09,1.57]
[1762650241683,1.82741222,157.13,157.12,1.57]
[1762650242183,1.82741222,157.13,157.12,7.3003]
[1762650242784,0.04765298,157.14,157.13,1.57]
[1762650246286,3.18,157.2,157.13,1.57]
[1762650246591,1.82741222,157.19,157.17,7.2985]
[1762650247090,62.86,157.23,157.1,11.462]
[1762650247091,5.00741222,157.23,157.2,1.57]
[1762650247293,1.82741222,157.23,157.2,1.57]
[1762650247487,1.86831618,157.23,157.2,1.61416099]
[1762650248090,1.86831618,157.23,157.21,5.7269]
[1762650248293,5.04831618,157.23,157.21,1.57]
[1762650248492,1.86831618,157.23,157.21,1.57]
[1762650250492,1.86831618,157.23,157.21,7.2969]
[1762650251398,1.86831618,157.23,157.22,1.57]
[1762650251588,0.04090396,157.23,157.22,1.57]
[1762650253388,5.00741222,157.27,157.24,7.2957]
[1762650253592,3.18,157.27,157.25,1.57]
[1762650253989,3.18,157.28,157.25,1.57]
[1762650254394,3.22663544,157.28,157.25,1.61151118]
[1762650254898,3.22663544,157.28,157.26,1.57]
[1762650255494,0.04663544,157.28,157.26,1.57]
[1762650255698,0.04663544,157.28,157.27,1.57]
[1762650256000,3.18,157.31,157.27,1.57]
[1762650256188,5.00741222,157.33,157.27,1.57]
[1762650256488,3.18,157.33,157.27,1.57]
[1762650257088,3.18,157.36,157.3,1.57]
[1762650257290,3.18,157.36,157.31,1.61897906]
[1762650258002,3.18,157.36,157.31,7.34217906]
[1762650258500,3.18,157.36,157.32,1.57]
[1762650259490,3.18,157.36,157.33,1.57]
[1762650259690,3.18,157.37,157.33,1.57]
[1762650260302,3.18,157.37,157.34,1.57]
[1762650260598,6.02502794,157.38,157.34,1.57]
[1762650260905,6.02502794,157.38,157.34,1.61840469]
[1762650261095,3.18,157.37,157.34,0.04840469]
[1762650261790,3.18,157.36,157.34,0.04840469]
[1762650262598,8.9017,157.36,157.34,0.04840469]
[1762650262903,3.18,157.35,157.34,0.04840469]
[1762650263306,6.02502794,157.35,157.34,0.04840469]
[1762650263701,6.02502794,157.35,157.22,36.5]
[1762650263702,3.18,157.33,157.22,1.57]
[1762650263904,3.18,157.31,157.22,1.57]
[1762650264201,3.18,157.31,157.25,5.7253]
[1762650264408,3.18,157.28,157.25,5.7253]
[1762650264599,3.22237895,157.28,157.25,5.77361996]
[1762650264800,3.22237895,157.28,157.25,0.04831996]
[1762650266205,0.04237895,157.28,157.25,1.61831996]
[1762650266904,3.22237895,157.28,157.25,1.61831996]
[1762650270107,3.22237895,157.28,157.25,7.34381996]
[1762650270508,3.22237895,157.28,157.25,0.04831996]
[1762650272109,5.77502794,157.26,157.25,0.04831996]
[1762650272309,2.93,157.25,157.19,7.2977]
[1762650272812,2.93,157.24,157.19,1.57]
[1762650273204,2.84502794,157.26,157.13,65.80502794]
[1762650273205,2.93,157.22,157.2,0.04575292]
[1762650273406,2.93,157.21,157.2,0.04575292]
[1762650289926,3.03,157.19,157.14,1.55]
[1762650290826,0.04571759,157.18,157.16,7.2788]
[1762650291023,0.04571759,157.18,157.17,1.55]
[1762650291520,0.04571759,157.18,157.16,7.2788]
[1762650291720,0.04571759,157.18,157.15,0.04838604]
[1762650291721,3.07571759,157.18,157.15,0.04838604]
[1762650292719,3.07571759,157.18,157.15,7.32758604]
[1762650296732,8.80391759,157.18,157.15,1.59838604]
[1762650297928,3.03,157.17,157.15,0.04838604]
[1762650298136,3.03,157.16,157.15,0.04838604]
[1762650303440,3.03,157.16,157.11,245.31455901]
[1762650303441,3.17,157.12,157.04,1.56]
[1762650304333,0.04269296,157.1,157.06,0.04893658]
[1762650304532,3.17,157.09,157.06,1.60055637]
[1762650304928,3.17,157.09,157.06,7.33305637]
[1762650306335,3.17,157.09,157.06,1.60055637]
[1762650306720,3.21269296,157.1,157.06,1.60055637]
[1762650306922,3.21269296,157.1,157.07,1.56]
[1762650307732,0.04269296,157.1,157.08,1.56]
[1762650308128,3.21269296,157.1,157.06,1.60055637]
[1762650308527,3.21269296,157.1,157.06,0.04055637]
[1762650309135,3.21269296,157.1,157.06,1.60055637]
[1762650311736,0.04269296,157.1,157.07,1.56]
[1762650312831,0.04269296,157.1,157.09,1.56]
[1762650313538,3.17,157.15,157.11,1.56]
[1762650313942,3.17,157.15,157.08,1.56]
[1762650314439,3.21883178,157.13,157.1,1.60653861]
[1762650314743,3.21883178,157.13,157.11,5.7307]
[1762650314936,0.04883178,157.13,157.11,7.2907]
[1762650321946,3.21883178,157.13,157.1,0.04653861]
[1762650323147,3.17,157.11,157.1,0.04653861]
[1762650324346,3.17,157.12,157.1,0.04653861]
[1762650326952,5.7304,157.12,157.1,0.04653861]
[1762650327153,3.17,157.11,157.1,0.04653861]
[1762650330856,3.21883178,157.13,157.1,1.60653861]
[1762650331051,3.21883178,157.13,157.1,0.04653861]
[1762650331959,3.14,157.12,157.1,0.04653861]
[1762650333455,8.8703,157.12,157.1,0.04653861]
[1762650333659,3.14,157.11,157.1,0.04653861]
[1762650335858,3.14,157.1,157.03,1.56]
[1762650336859,3.18307347,157.08,157.05,0.04374094]
[1762650337051,3.18307347,157.08,157.05,5.77644094]
[1762650342958,3.14,157.07,157.05,0.04374094]
[1762650344066,8.8722,157.07,157.05,0.04374094]
[1762650344359,2.98,157.06,157.05,0.04374094]
[1762650346558,0.04307347,157.08,157.05,1.61374094]
[1762650347258,0.04307347,157.08,157.07,1.57]
[1762650358283,0.04307347,157.08,157.07,3.39493079]
[1762650358780,7.98179448,157.13,157.09,1.57]
[1762650359074,2.98,157.13,157.09,1.57]
[1762650359775,3.02482526,157.13,157.09,1.61865683]
[1762650359970,2.98,157.12,157.09,7.34985683]
[1762650360775,2.98,157.12,157.1,1.57]
[1762650360974,0.04482526,157.13,157.11,1.57]
[1762650362984,0.04482526,157.13,157.1,1.56]
[1762650362985,3.28482526,157.13,157.1,1.56]
[1762650363167,3.28482526,157.13,157.09,5.77995683]
[1762650363367,0.04482526,157.13,157.09,1.60865683]
[1762650363672,3.28482526,157.13,157.09,1.60865683]
[1762650363873,0.04482526,157.13,157.12,1.56]
[1762650371288,37.8077,157.2,157.16,7.2887]
[1762650371289,3.24,157.19,157.16,7.2887]
[1762650371487,5.06493079,157.22,157.16,1.56]
[1762650371685,1.82493079,157.22,157.16,1.56]
[1762650371984,3.24,157.2,157.17,5.7284]
[1762650372187,3.24,157.2,157.17,7.2884]
[1762650372384,3.28502346,157.2,157.17,7.33289542]
[1762650372889,0.04502346,157.2,157.18,7.2881]
[1762650373276,0.04502346,157.2,157.19,1.56]
[1762650374889,3.24,157.26,157.22,1.56]
[1762650375389,3.24,157.26,157.22,7.2866]
[1762650375894,3.28826469,157.26,157.22,7.33409109]
[1762650377580,0.04826469,157.26,157.23,7.2862]
[1762650377780,3.28826469,157.26,157.24,1.56]
[1762650378086,3.28826469,157.26,157.22,1.60749109]
[1762650380401,3.28826469,157.26,157.22,0.04749109]
[1762650380999,3.24,157.24,157.22,0.04749109]
[1762650382089,3.24,157.23,157.22,0.04749109]
[1762650385504,3.24,157.21,157.17,1.56]
[1762650386408,3.28102616,157.21,157.17,1.60496382]
[1762650387007,3.28102616,157.21,157.17,7.33336382]
[1762650388002,3.28102616,157.21,157.18,1.56]
[1762650388209,3.28102616,157.21,157.18,7.2881]
[1762650390910,0.04102616,157.21,157.19,7.2877]
[1762650391107,0.04102616,157.21,157.2,1.56]
[1762650392110,0.04102616,157.21,157.19,7.2877]
[1762650392711,0.04102616,157.21,157.2,1.56]
[1762650394614,0.04102616,157.21,157.19,7.2877]
[1762650395811,3.26102616,157.21,157.19,7.2877]
[1762650396013,3.26102616,157.21,157.19,5.7277]
[1762650396219,3.26102616,157.21,157.17,7.33316382]
[1762650396413,3.26102616,157.21,157.17,1.60496382]
[1762650397300,3.26102616,157.21,157.18,7.2881]
[1762650397501,0.04102616,157.21,157.19,1.56]
[1762650398113,0.04102616,157.21,157.19,7.2876]
[1762650398319,0.04102616,157.21,157.2,1.56]
[1762650402211,3.22,157.27,157.21,1.56]
[1762650402618,8.1554024,157.26,157.21,1.56]
[1762650402818,3.22,157.29,157.24,1.56]
[1762650403017,3.22,157.27,157.24,1.56]
[1762650403323,3.26615248,157.27,157.24,1.60416313]
[1762650404010,0.04615248,157.27,157.24,1.60416313]
[1762650405021,0.04615248,157.27,157.26,1.56]
[1762650409425,66.05,157.33,157.27,1.56]
[1762650409629,4.93403974,157.32,157.27,1.56]
[1762650409827,3.01,157.33,157.27,1.56]
[1762650410028,4.93403981,157.32,157.27,1.56]
[1762650410235,5.9293236,157.37,157.3,1.56]
[1762650410431,3.01,157.38,157.3,1.56]
[1762650410729,12.72110328,157.37,157.3,1.56]
[1762650410935,7.94172231,157.36,157.33,1.56]
[1762650411134,3.01,157.36,157.33,1.56]
[1762650411430,3.01,157.36,157.33,1.60888458]
[1762650411633,14.4972072,157.4,157.33,1.60888458]
[1762650411634,3.01,157.38,157.34,1.56]
[1762650411926,7.93869837,157.37,157.34,1.56]
[1762650412126,17.5072072,157.4,157.34,1.56]
[1762650412429,7.93615163,157.39,157.35,1.56]
[1762650412634,7.93615163,157.38,157.35,1.56]
[1762650412826,4.92615163,157.37,157.35,7.2818]
[1762650413025,3.01,157.38,157.35,7.2818]
[1762650415827,3.01,157.38,157.35,1.56]
[1762650417134,3.01,157.38,157.33,7.33148458]
[1762650420135,3.01,157.38,157.34,7.2822]
[1762650420636,5.8575836,157.4,157.35,1.56]
[1762650421531,3.01,157.39,157.36,1.56]
[1762650421730,3.01,157.39,157.36,1.60459346]
[1762650422029,3.03,157.38,157.36,0.04459346]
[1762650422227,3.03,157.38,157.36,1.60459346]
[1762650422427,3.03,157.4,157.36,1.60459346]
[1762650423935,3.03,157.39,157.36,1.60459346]
[1762650424237,3.03,157.39,157.36,0.04459346]
[1762650424636,8.7507,157.39,157.36,0.04459346]
[1762650424824,3.03,157.37,157.36,0.04459346]
[1762650425430,3.03,157.37,157.32,1.56]
[1762650426234,3.03,157.36,157.28,1.56]
[1762650426437,0.04209509,157.34,157.3,0.04646758]
[1762650426636,3.07209509,157.34,157.3,1.60646758]
[1762650426934,3.07209509,157.34,157.31,7.2833]
[1762650427136,3.07209509,157.34,157.32,1.56]
[1762650427533,3.07209509,157.34,157.32,7.283]
[1762650427732,0.04209509,157.34,157.33,1.56]
[1762650434150,3.07209509,157.34,157.32,5.723]
[1762650434334,3.07209509,157.34,157.3,5.76996758]
[1762650434938,3.07209509,157.34,157.31,5.7232]
[1762650435644,3.07209509,157.34,157.31,7.2832]
[1762650438335,3.07209509,157.34,157.3,0.04646758]
[1762650438336,4.85100889,157.32,157.3,0.04646758]
[1762650439140,3.03,157.31,157.3,0.04646758]
[1762650439338,3.03,157.31,157.25,1.56]
[1762650439538,4.85100889,157.29,157.25,1.56]
[1762650440248,3.03,157.29,157.25,1.56]
[1762650440448,1.82100889,157.31,157.25,1.56]
[1762650440747,4.85100889,157.31,157.25,1.56]
[1762650441054,3.03,157.3,157.27,5.7248]
[1762650441346,0.0422492,157.29,157.27,7.2848]
[1762650442544,0.0422492,157.29,157.27,1.56]
[1762650444246,3.03,157.28,157.25,0.0488374]
[1762650444646,3.03,157.26,157.25,0.0488374]
[1762650447153,1.82100889,157.27,157.25,5.7743374]
[1762650447348,4.85100889,157.27,157.25,5.7743374]
[1762650447559,3.03,157.26,157.25,0.0488374]
[1762650448959,1.82100889,157.27,157.25,0.0488374]
[1762650449249,4.89325809,157.29,157.27,5.7248]
[1762650449555,0.0422492,157.29,157.27,7.2848]
[1762650449747,3.0722492,157.29,157.27,7.2848]
[1762650451050,3.0722492,157.29,157.25,7.3341374]
[1762650451351,0.0422492,157.29,157.27,1.56]
[1762650451547,0.0422492,157.29,157.27,7.2847]
[1762650451746,0.0422492,157.29,157.28,1.56]
[1762650455562,0.0422492,157.29,157.27,5.7247]
[1762650455762,0.0422492,157.29,157.27,7.2847]
[1762650456257,3.1122492,157.29,157.27,5.7247]
[1762650456565,3.1122492,157.29,157.25,7.3341374]
[1762650456856,3.1122492,157.29,157.26,5.7251]
[1762650457258,3.1122492,157.29,157.26,7.2851]
[1762650457462,3.1122492,157.29,157.27,7.2848]
[1762650457758,0.0422492,157.29,157.28,1.56]
[1762650468463,3.06,157.35,157.28,1.56]
[1762650468771,3.06,157.37,157.34,1.56]
[1762650469159,4.9012788,157.36,157.34,1.56]
[1762650469356,3.06,157.37,157.34,1.56]
[1762650469572,4.90110456,157.36,157.34,1.6070191]
[1762650469759,3.10052343,157.37,157.34,1.6070191]
[1762650469956,4.90110343,157.36,157.34,1.6070191]
[1762650470164,3.10052343,157.37,157.34,1.6070191]
[1762650470466,4.90133694,157.36,157.34,1.6070191]
[1762650470660,3.10052343,157.37,157.34,1.6070191]
[1762650470860,4.90133575,157.36,157.34,1.6070191]
[1762650471067,0.04052343,157.37,157.35,7.2819]
[1762650471268,4.9012006,157.36,157.35,7.2819]
[1762650471970,0.04052343,157.37,157.35,7.2819]
[1762650473271,3.10052343,157.37,157.35,7.2819]
[1762650473773,3.10052343,157.37,157.34,0.0470191]
[1762650473961,3.06,157.35,157.34,0.0470191]
[1762650477974,4.88100889,157.36,157.34,5.7692191]
[1762650478273,3.06,157.35,157.34,5.7692191]
[1762650479376,1.82100889,157.36,157.34,5.7692191]
[1762650479377,4.88100889,157.36,157.34,5.7692191]
[1762650480177,3.06,157.35,157.34,5.7692191]
[1762650480874,1.82100889,157.36,157.34,5.7692191]
[1762650481074,4.88100889,157.36,157.34,5.7692191]
[1762650481773,1.82100889,157.36,157.35,1.56]
[1762650482278,1.82100889,157.36,157.34,7.3292191]
[1762650482577,0.04052343,157.37,157.35,7.2819]
[1762650482775,3.01052343,157.37,157.35,7.2819]
[1762650483278,0.04052343,157.37,157.36,1.56]
[1762650483464,0.04052343,157.37,157.35,7.2819]
[1762650484070,0.04052343,157.37,157.36,1.56]
[1762650492586,4.79100889,157.43,157.39,1.56]
[1762650493283,1.82100889,157.43,157.41,7.2797]
[1762650493592,1.82100889,157.43,157.42,1.56]
[1762650493882,4.79100889,157.43,157.4,1.60411989]
[1762650494586,4.79100889,157.43,157.41,5.7197]
[1762650494985,2.97,157.43,157.41,7.2797]
[1762650495192,4.79100889,157.43,157.41,7.2797]
[1762650496979,4.77548244,157.46,157.4,0.04411989]
[1762650496980,2.97,157.46,157.43,1.56]
[1762650497183,4.79100889,157.45,157.43,1.56]
[1762650497490,4.79100889,157.45,157.33,74.4048]
[1762650497491,4.79100889,157.45,157.42,1.60235641]
[1762650497787,4.79100889,157.45,157.42,1.6030111]
[1762650498573,56.3,157.49,157.43,5.7188]
[1762650498788,1.82100889,157.46,157.44,1.56]
[1762650499178,1.82100889,157.46,157.44,7.2786]
[1762650499385,4.79100889,157.47,157.45,1.56]
[1762650499782,2.97,157.46,157.44,0.04541597]
[1762650499986,9.6418606,157.45,157.44,0.04541597]
[1762650500185,4.79100889,157.45,157.44,0.04541597]
[1762650500484,5.8116078,157.45,157.44,0.04541597]
[1762650501190,2.97,157.47,157.44,1.60541597]
[1762650502790,2.97,157.47,157.44,0.04541597]
[1762650505693,5.8116078,157.45,157.44,0.04541597]
[1762650507095,2.97,157.44,157.39,1.56]
[1762650507593,2.97,157.44,157.4,1.56]
[1762650508195,2.97,157.44,157.4,1.60436945]
[1762650508993,2.97,157.44,157.4,7.32446945]
[1762650509198,2.97,157.44,157.4,5.76446945]
[1762650509799,8.6889,157.44,157.4,0.04436945]
[1762650509993,2.97,157.41,157.4,0.04436945]
[1762650510689,2.88697027,157.42,157.4,1.60436945]
[1762650511996,2.88697027,157.42,157.4,7.32446945]
[1762650514201,6.01697027,157.42,157.4,7.32446945]
[1762650516193,3.13,157.41,157.4,5.76446945]
[1762650517198,6.01697027,157.42,157.4,5.76446945]
[1762650517504,6.01697027,157.42,157.4,7.32446945]
[1762650519899,3.13,157.41,157.4,0.04436945]
[1762650523110,7.97739607,157.41,157.4,0.04436945]
[1762650525810,3.13,157.41,157.4,0.04436945]
[1762650526010,3.17536247,157.42,157.4,5.76436945]
[1762650526512,0.04536247,157.42,157.41,1.56]
[1762650526714,4.89587428,157.42,157.41,1.56]
[1762650527009,8.02587428,157.42,157.4,7.32436945]
[1762650527209,3.17536247,157.42,157.4,7.32436945]
[1762650527410,4.85220371,157.41,157.4,7.32436945]
[1762650529723,7.98220371,157.41,157.4,5.76436945]
[1762650537532,12.73521353,157.41,157.4,5.76436945]
[1762650540833,7.98220371,157.41,157.4,5.76436945]
[1762650541226,3.13,157.41,157.4,5.76436945]
[1762650541534,0.04536247,157.42,157.41,1.56]
[1762650541734,8.07927804,157.42,157.4,5.76436945]
[1762650541935,3.23536247,157.42,157.4,5.76436945]
[1762650542233,4.84441503,157.41,157.4,5.76436945]
[1762650542437,8.03441503,157.41,157.4,5.76436945]
[1762650542734,12.78792424,157.41,157.4,5.76436945]
[1762650543334,12.78792424,157.41,157.4,0.04436945]
[1762650545242,9.59792424,157.41,157.4,1.60436945]
[1762650545541,0.04536247,157.42,157.41,7.2798]
[1762650545738,4.89038059,157.42,157.41,7.2798]
[1762650547236,0.04536247,157.42,157.41,7.2798]
[1762650549642,3.19,157.46,157.45,5.7183]
[1762650549944,12.78792842,157.46,157.45,5.7183]
[1762650550239,3.19,157.45,157.42,1.56]
[1762650550439,8.03496886,157.44,157.43,5.7191]
[1762650553045,4.84496886,157.44,157.43,7.2791]
[1762650554341,4.84164174,157.44,157.43,5.7191]
[1762650554643,8.03164174,157.44,157.43,5.7191]
[1762650556652,4.84164174,157.44,157.43,7.2791]
[1762650557350,3.19,157.47,157.44,5.7183]
[1762650557545,3.19,157.45,157.44,5.7183]
[1762650557846,8.03039777,157.45,157.44,5.7183]
[1762650560345,9.84865618,157.45,157.44,5.7183]
[1762650562159,9.84865618,157.45,157.43,1.56]
[1762650562358,4.84039777,157.44,157.43,1.56]
[1762650562941,4.84039777,157.44,157.43,7.279]
[1762650563957,5.00825841,157.45,157.43,7.279]
[1762650568059,5.9293236,157.48,157.46,1.56]
[1762650568260,8.02130151,157.47,157.45,1.60352736]
[1762650568451,4.83130151,157.46,157.45,1.56]
[1762650568652,4.83130151,157.46,157.45,7.2783]
[1762650569756,4.83130151,157.46,157.45,5.7183]
[1762650570558,9.1193236,157.52,157.49,1.56]
[1762650570853,5.00825841,157.52,157.49,0.04226018]
[1762650571060,3.19,157.51,157.49,0.04226018]
[1762650573463,4.86825841,157.5,157.49,0.04226018]
[1762650574662,3.05,157.46,157.39,1.56]
[1762650574866,3.05,157.46,157.34,11.4441]
[1762650574867,3.05,157.41,157.36,1.56]
[1762650575558,0.0463373,157.4,157.37,0.04571512]
[1762650575758,3.05,157.39,157.37,0.04571512]
[1762650575961,3.05,157.39,157.38,5.7207]
[1762650576467,0.0463373,157.4,157.39,1.56]
[1762650597995,3.16,157.45,157.41,1.56]
[1762650598297,4.99324433,157.44,157.41,1.56]
[1762650598596,3.16,157.45,157.41,1.56]
[1762650598889,7.75209308,157.48,157.41,1.56]
[1762650598890,3.16,157.43,157.41,1.56]
[1762650599093,3.16,157.43,157.41,1.60667293]
[1762650599994,3.16,157.43,157.42,5.7194]
[1762650600193,8.15338423,157.43,157.42,5.7194]
[1762650601397,3.16,157.47,157.46,5.718]
[1762650602604,3.16,157.47,157.45,0.04811842]
[1762650603101,3.16,157.47,157.45,5.76641842]
[1762650606600,3.16,157.47,157.45,7.32641842]
[1762650606796,3.16,157.47,157.45,5.76641842]
[1762650607486,3.16,157.47,157.45,7.32641842]
[1762650608190,3.1,157.49,157.47,5.7174]
[1762650609098,4.91825841,157.5,157.48,5.717]
[1762650610392,4.91825841,157.5,157.45,1.60811842]
[1762650610393,3.1,157.49,157.45,1.60811842]
[1762650610991,4.91825841,157.5,157.49,5.7169]
[1762650611199,3.1,157.52,157.47,1.56]
[1762650611401,3.1,157.52,157.49,1.56]
[1762650611898,3.1,157.52,157.5,5.7164]
[1762650612098,3.1,157.52,157.5,7.2764]
[1762650612303,4.91825841,157.53,157.5,1.56]
[1762650612699,3.1,157.52,157.49,5.7166]
[1762650613402,3.1,157.5,157.49,5.7166]
[1762650613603,8.06146572,157.5,157.49,5.7166]
[1762650615305,3.1,157.5,157.49,5.7166]
[1762650617202,3.1,157.55,157.48,0.04541692]
[1762650617497,3.1,157.52,157.48,1.60541692]
[1762650617702,3.1,157.52,157.49,5.7168]
[1762650618705,3.1,157.52,157.5,5.7163]
[1762650618905,4.91825841,157.51,157.5,5.7163]
[1762650619408,3.1,157.51,157.5,5.7163]
[1762650619598,3.1,157.51,157.5,7.53455841]
[1762650620897,5.93383467,157.56,157.54,5.715]
[1762650621201,4.8814002,157.55,157.54,5.715]
[1762650621405,7.9814002,157.55,157.54,5.715]
[1762650622809,9.2414002,157.55,157.54,5.715]
[1762650623902,7.9814002,157.55,157.54,5.715]
[1762650626607,3.1,157.54,157.53,0.04352504]
[1762650626812,3.1,157.53,157.47,1.56]
[1762650627007,3.1,157.51,157.47,1.56]
[1762650627514,3.1,157.51,157.49,5.7168]
[1762650631115,7.99837303,157.5,157.49,5.7168]
[1762650632711,3.1,157.5,157.49,5.7168]
[1762650632905,0.04288911,157.52,157.51,5.7161]
[1762650633109,4.94277564,157.52,157.51,5.7161]
[1762650633316,0.04288911,157.52,157.51,5.7161]
[1762650634912,0.04288911,157.52,157.51,7.2661]
[1762650635121,2.94,157.58,157.56,5.7141]
[1762650635410,7.83819923,157.57,157.56,5.7141]
[1762650635617,4.89819923,157.57,157.56,5.7141]
[1762650636114,4.89819923,157.57,157.56,7.2641]
[1762650636311,2.94,157.6,157.59,5.7132]
[1762650636519,2.94,157.63,157.59,1.55]
[1762650636705,4.89605154,157.62,157.59,1.59006127]
[1762650636911,2.94,157.63,157.61,5.7122]
[1762650637110,4.89592048,157.62,157.61,5.7122]
[1762650637318,2.94,157.63,157.61,5.7122]
[1762650638318,2.94,157.66,157.62,5.7118]
[1762650638516,2.94,157.64,157.62,5.75384189]
[1762650639312,2.94,157.64,157.62,0.04204189]
[1762650639514,7.80817518,157.63,157.62,0.04204189]
[1762650642619,7.80817518,157.63,157.45,19.1]
[1762650642620,2.94,157.62,157.52,1.55]
[1762650642823,2.94,157.6,157.52,1.55]
[1762650643122,2.94,157.58,157.52,1.55]
[1762650643620,2.94,157.58,157.54,1.55]
[1762650643621,0.04095786,157.57,157.54,1.55]
[1762650643822,2.98095786,157.57,157.53,0.04859856]
[1762650644126,2.98095786,157.57,157.54,7.2649]
[1762650644524,2.98095786,157.57,157.54,5.7149]
[1762650645017,0.04095786,157.57,157.55,7.2645]
[1762650645220,0.04095786,157.57,157.55,5.7145]
[1762650645418,3.08095786,157.57,157.55,5.7145]
[1762650647525,0.04095786,157.57,157.55,7.2645]
[1762650648130,3.08095786,157.57,157.55,5.7145]
[1762650654345,3.08095786,157.57,157.55,7.2645]
[1762650658144,3.08095786,157.57,157.55,5.7145]
[1762650659549,0.04095786,157.57,157.56,1.55]
[1762650659840,3.08095786,157.57,157.55,5.7145]
[1762650662450,3.08095786,157.57,157.53,0.04859856]
[1762650662640,3.0,157.55,157.48,1.55]
[1762650663041,3.0,157.55,157.49,5.7165]
[1762650663345,3.0,157.53,157.49,7.2665]
[1762650663546,3.04542197,157.53,157.49,7.31491897]
[1762650664549,3.04542197,157.53,157.5,1.55]
[1762650665453,3.04542197,157.53,157.49,5.76491897]
[1762650665454,0.04542197,157.53,157.51,1.55]
[1762650666952,0.04542197,157.53,157.51,7.266]
[1762650667352,0.04542197,157.53,157.52,1.55]
[1762650678967,0.04542197,157.53,157.51,7.266]
[1762650679358,0.04542197,157.53,157.52,1.55]
[1762650684769,4.92434503,157.53,157.52,1.55]
[1762650684962,0.04542197,157.53,157.52,1.55]
[1762650686766,4.92649888,157.53,157.52,1.55]
[1762650687267,0.04542197,157.53,157.52,1.55]
[1762650688167,4.92765373,157.53,157.52,1.55]
[1762650694177,4.92765373,157.53,157.52,7.2658]
[1762650701868,7.96765373,157.53,157.52,5.7158]
[1762650702882,7.96765373,157.53,157.5,1.55]
[1762650703074,4.88223176,157.52,157.5,1.55]
[1762650703276,3.08542197,157.53,157.5,1.55]
[1762650703472,3.04,157.51,157.5,5.7165]
[1762650704083,3.08542197,157.53,157.51,5.7161]
[1762650704380,4.80431297,157.52,157.51,5.7161]
[1762650704978,7.90431297,157.52,157.51,5.7161]
[1762650705373,7.90431297,157.52,157.49,0.04841897]
[1762650705374,3.1,157.51,157.49,0.04841897]
[1762650705678,3.1,157.49,157.43,1.55]
[1762650705984,3.1,157.47,157.43,1.55]
[1762650706180,3.1,157.47,157.41,1.81553756]
[1762650706181,3.1,157.47,157.44,1.55]
[1762650706787,3.1,157.45,157.44,0.04107529]
[1762650707177,7.90445328,157.45,157.44,0.04107529]
[1762650707482,3.1,157.44,157.41,5.7195]
[1762650707886,3.1,157.43,157.41,5.7195]
[1762650710387,3.1,157.43,157.41,7.2695]
[1762650714182,3.1,157.43,157.4,0.0469947]
[1762650724696,3.22,157.42,157.4,0.0469947]
[1762650726788,8.9395,157.42,157.4,0.0469947]
[1762650726987,3.22,157.41,157.4,0.0469947]
[1762650727189,3.22,157.41,157.36,278.8261267]
[1762650727793,3.22,157.41,157.36,280.3761267]
[1762650727995,3.22,157.4,157.37,5.7212]
[1762650728188,3.26175203,157.4,157.37,5.76222854]
[1762650729487,3.26175203,157.4,157.37,7.5777661]
[1762650730399,3.26175203,157.4,157.37,9.1277661]
[1762650730896,3.26175203,157.4,157.37,7.5777661]
[1762650731486,3.26175203,157.4,157.37,1.8565661]
[1762650731684,3.26175203,157.4,157.37,0.04102854]
[1762650733791,3.22,157.39,157.37,0.04102854]
[1762650734796,3.22,157.38,157.37,0.04102854]
[1762650738395,3.22,157.38,157.32,5.7227]
[1762650738590,3.22,157.38,157.31,1.55]
[1762650738896,3.22,157.35,157.29,3.36553756]
[1762650739291,3.22,157.35,157.3,7.31769378]
[1762650739497,3.22,157.33,157.3,0.04429378]